[Event "DFMMLV 2024"]
[Site "Braunfels"]
[Date "2024.06.02"]
[Round "5.32"]
[White "Lossin, Charlotte"]
[Black "Peglau, Sarah"]
[Result "0-1"]
[ECO "D05"]
[WhiteElo "1705"]
[BlackElo "1851"]
[Annotator "NA RC"]
[PlyCount "44"]
[EventDate "2024.05.30"]
[EventType "team-tourn"]
[EventCountry "GER"]
[SourceTitle "playchess.com"]
[Source "ChessBase"]
[SourceQuality "1"]
[TimeControl "40/5400+30:1800+30"]

1. d4 {[%emt 0:00:03]} d5 {[%emt 0:00:39]} 2. Nf3 {[%emt 0:02:58]} Nf6 {[%emt 0:00:07]} 3. e3 {[%emt 0:00:07]} e6 {[%emt 0:06:34]} 4. Bd3 {[%emt 0:02:12]} c5 {[%emt 0:01:02]} 5. c3 {[%emt 0:00:21]} Nc6 {[%emt 0:00:49]} 6. Nbd2 {[%emt 0:00:38]} cxd4 {[%emt 0:03:06]} 7. exd4 {[%emt 0:00:29]} Bd6 {[%emt 0:00:13]} 8. O-O {[%emt 0:00:45]} O-O {[%emt 0:00:24]} 9. Re1 {[%emt 0:01:19]} Rb8 {[%emt 0:00:52]} 10. Ne5 {[%emt 0:00:39]} Qc7 {[%emt 0:03:09]} 11. f4 {[%emt 0:01:01]} b5 {[%emt 0:01:22]} 12. g4 {[%emt 0:01:28]} g6 {[%emt 0:36:09]} 13. Re3 {[%emt 0:20:59]} b4 {[%emt 0:01:05]} 14. Rh3 {[%emt 0:06:25]} bxc3 {[%emt 0:03:33]} 15. bxc3 {[%emt 0:00:36]} Nxe5 {[%emt 0:01:47]} 16. fxe5 {[%emt 0:07:33]} Qxc3 {[%emt 0:00:18]} 17. Nf3 {[%emt 0:15:08]} Qxa1 {[%emt 0:01:46]} 18. exd6 {[%emt 0:08:03]} Nxg4 {[%emt 0:02:51]} 19. Qd2 {[%emt 0:04:22]} Ba6 {[%emt 0:04:15]} 20. Ng5 {[%emt 0:12:52]} Bxd3 {[%emt 0:12:31]} 21. Rxd3 {[%emt 0:01:11]} Rfc8 {[%emt 0:00:50]} 22. Qf4 {[%emt 0:04:40]} Qxc1+ {[%emt 0:18:08]} 0-1

[Event "DFMMLV 2024"]
[Site "Braunfels"]
[Date "2024.06.02"]
[Round "5.34"]
[White "Kalina, Lena"]
[Black "Albayrak, Berrak"]
[Result "1-0"]
[ECO "E69"]
[WhiteElo "1918"]
[BlackElo "1850"]
[Annotator "NA"]
[PlyCount "87"]
[EventDate "2024.05.30"]
[EventType "team-tourn"]
[EventCountry "GER"]
[SourceTitle "playchess.com"]
[Source "ChessBase"]
[SourceQuality "1"]
[TimeControl "40/5400+30:1800+30"]

1. d4 {[%emt 1:31:00]} Nf6 {[%emt 1:31:00]} 2. c4 {[%emt 0:00:30]} g6 {[%emt 0:00:00]} 3. Nf3 {[%emt 0:00:00]} Bg7 {[%emt 0:00:00]} 4. g3 {[%emt 0:00:00]} O-O {[%emt 0:00:00]} 5. Bg2 {[%emt 0:00:00]} d6 {[%emt 0:00:00]} 6. Nc3 {[%emt 0:00:00]} Nbd7 {[%emt 0:00:00]} 7. O-O {[%emt 0:00:00]} e5 {[%emt 0:00:00]} 8. h3 {[%emt 0:00:00]} c6 {[%emt 0:00:00]} 9. e4 {[%emt 0:00:00]} Re8 {[%emt 0:00:00]} 10. Be3 {[%emt 0:00:00]} exd4 {[%emt 0:00:00]} 11. Nxd4 {[%emt 0:00:00]} Nc5 {[%emt 0:00:00]} 12. Qc2 {[%emt 0:00:00]} Qe7 {[%emt 0:00:00]} 13. f3 {[%emt 0:00:00]} a5 {[%emt 0:00:00]} 14. Bf2 {[%emt 0:00:00]} Nh5 {[%emt 0:00:00]} 15. Rad1 {[%emt 0:00:00]} Bd7 {[%emt 0:00:00]} 16. Rfe1 {[%emt 0:00:00]} Ne6 {[%emt 0:00:00]} 17. Nxe6 {[%emt 0:00:00]} Bxe6 {[%emt 0:00:00]} 18. b3 {[%emt 0:00:00]} Qc7 {[%emt 0:00:00]} 19. f4 {[%emt 0:00:00]} b5 {[%emt 0:00:00]} 20. Ne2 {[%emt 0:00:00]} bxc4 {[%emt 0:00:00]} 21. bxc4 {[%emt 0:00:00]} Rac8 {[%emt 0:00:00]} 22. Nd4 {[%emt 0:00:00]} Bd7 {[%emt 0:00:00]} 23. Kh2 {[%emt 0:00:00]} Nf6 {[%emt 0:02:39]} 24. Nf3 {[%emt 0:00:00]} d5 {[%emt 0:02:48]} 25. cxd5 {[%emt 0:00:00]} cxd5 {[%emt 0:02:02]} 26. Qxc7 {[%emt 0:00:00]} Rxc7 {[%emt 0:00:04]} 27. exd5 {[%emt 0:00:00]} Ne4 {[%emt 0:02:06]} 28. Bd4 {[%emt 0:00:00]} Rc2 {[%emt 0:00:45]} 29. Bxg7 {[%emt 0:02:56]} Kxg7 {[%emt 0:00:05]} 30. Ne5 {[%emt 0:00:11]} Ba4 {[%emt 0:01:24]} 31. Rxe4 {[%emt 0:03:06]} Rxg2+ {[%emt 0:00:14]} 32. Kxg2 {[%emt 0:00:04]} Bxd1 {[%emt 0:00:04]} 33. Rd4 {[%emt 0:00:54]} Bc2 {[%emt 0:02:58]} 34. g4 {[%emt 0:02:24]} Rd8 {[%emt 0:00:41]} 35. d6 {[%emt 0:00:53]} f5 {[%emt 0:00:23]} 36. g5 {[%emt 0:02:17]} Be4+ {[%emt 0:00:29]} 37. Kf2 {[%emt 0:00:43]} Kf8 {[%emt 0:00:26]} 38. d7 {[%emt 0:02:39]} Kg7 {[%emt 0:00:45]} 39. Ra4 {[%emt 0:01:27]} Kf8 {[%emt 0:00:31]} 40. Rxa5 {[%emt 0:00:47]} Ke7 {[%emt 0:00:23]} 41. Ra4 {[%emt 0:01:59]} Bd5 {[%emt 0:03:20]} 42. Rd4 {[%emt 0:03:14]} Ke6 {[%emt 0:01:34]} 43. a4 {[%emt 0:00:46]} Be4 {[%emt 0:03:33]} 44. a5 {[%emt 0:00:49]} 1-0

[Event "DFMMLV 2024"]
[Site "Braunfels"]
[Date "2024.06.02"]
[Round "5.35"]
[White "Bauer, Laura Sophie"]
[Black "Krasnopeyeva, Julia"]
[Result "1-0"]
[ECO "B42"]
[WhiteElo "1874"]
[BlackElo "1918"]
[Annotator "NA RC"]
[PlyCount "83"]
[EventDate "2024.05.30"]
[EventType "team-tourn"]
[EventCountry "GER"]
[SourceTitle "playchess.com"]
[Source "ChessBase"]
[SourceQuality "1"]
[TimeControl "40/5400+30:1800+30"]

1. e4 {[%emt 0:00:03]} c5 {[%emt 0:00:04]} 2. Nf3 {[%emt 0:00:09]} e6 {[%emt 0:00:09]} 3. d4 {[%emt 0:00:08]} cxd4 {[%emt 0:00:06]} 4. Nxd4 {[%emt 0:00:08]} a6 {[%emt 0:00:08]} 5. Bd3 {[%emt 0:00:23]} Bc5 {[%emt 0:00:24]} 6. Nb3 {[%emt 0:00:13]} Ba7 {[%emt 0:00:14]} 7. O-O {[%emt 0:00:18]} d6 {[%emt 0:01:28]} 8. Qe2 {[%emt 0:01:56]} Nf6 {[%emt 0:00:49]} 9. Be3 {[%emt 0:01:16]} Nc6 {[%emt 0:01:04]} 10. c4 {[%emt 0:01:32]} Bxe3 {[%emt 0:01:20]} 11. Qxe3 {[%emt 0:00:08]} O-O {[%emt 1:30:14]} 12. Nc3 {[%emt 0:01:20]} Re8 {[%emt 0:00:00]} 13. Qd2 {[%emt 0:02:00]} e5 {[%emt 0:00:00]} 14. Be2 {[%emt 0:06:55]} Qe7 {[%emt 0:00:00]} 15. Rfd1 {[%emt 0:05:37]} Rd8 {[%emt 0:00:00]} 16. Qe3 {[%emt 0:03:31]} Be6 {[%emt 0:00:00]} 17. Nd5 {[%emt 0:06:03]} Qf8 {[%emt 0:00:00]} 18. Qf3 {[%emt 0:12:57]} Bxd5 {[%emt 0:00:00]} 19. cxd5 {[%emt 0:00:30]} Ne7 {[%emt 0:00:00]} 20. Rac1 {[%emt 0:01:32]} Rac8 {[%emt 0:00:00]} 21. Qe3 {[%emt 0:02:35]} Ng6 {[%emt 0:00:00]} 22. g3 {[%emt 0:52:16]} Rxc1 {[%emt 0:00:00]} 23. Rxc1 {[%emt 0:00:00]} Rc8 {[%emt 0:00:00]} 24. f3 {[%emt 0:01:00]} Qd8 {[%emt 0:00:00]} 25. Rxc8 {[%emt 0:00:00]} Qxc8 {[%emt 0:00:00]} 26. Qc3 {[%emt 0:00:00]} Qxc3 {[%emt 0:07:30]} 27. bxc3 {[%emt 0:01:30]} Nd7 {[%emt 0:00:00]} 28. Na5 {[%emt 0:00:00]} Nc5 {[%emt 0:00:00]} 29. Nc4 {[%emt 0:00:00]} f5 {[%emt 0:00:00]} 30. Nxd6 {[%emt 0:00:00]} fxe4 {[%emt 0:00:00]} 31. Nxe4 {[%emt 0:00:00]} Nxe4 {[%emt 0:00:00]} 32. fxe4 {[%emt 0:00:00]} Kf7 {[%emt 0:00:00]} 33. Bh5 {[%emt 0:00:00]} Kf6 {[%emt 0:00:00]} 34. Bxg6 {[%emt 0:00:00]} Kxg6 {[%emt 0:00:00]} 35. c4 {[%emt 0:00:00]} b6 {[%emt 0:00:00]} 36. Kf2 {[%emt 0:00:00]} Kf6 {[%emt 0:00:00]} 37. Ke3 {[%emt 0:00:00]} g5 {[%emt 0:00:00]} 38. Kd3 {[%emt 0:00:00]} Ke7 {[%emt 0:00:00]} 39. c5 {[%emt 0:00:00]} bxc5 {[%emt 0:00:00]} 40. Kc4 {[%emt 0:00:00]} Kd6 {[%emt 0:00:00]} 41. g4 {[%emt 0:00:00]} h6 {[%emt 0:00:00]} 42. h3 {[%emt 0:37:30]} 1-0

[Event "DFMMLV 2024"]
[Site "Braunfels"]
[Date "2024.06.02"]
[Round "5.36"]
[White "Mader, Lena"]
[Black "Ankerst, Milka"]
[Result "1/2-1/2"]
[ECO "D34"]
[WhiteElo "1902"]
[BlackElo "1954"]
[Annotator "RC"]
[PlyCount "85"]
[EventDate "2024.05.30"]
[EventType "team-tourn"]
[EventCountry "GER"]
[SourceTitle "playchess.com"]
[Source "ChessBase"]
[SourceQuality "1"]
[TimeControl "40/5400+30:1800+30"]

1. c4 {[%emt 0:00:03]} e6 {[%emt 0:00:50]} 2. g3 {[%emt 0:00:07]} d5 {[%emt 0:00:18]} 3. Bg2 {[%emt 0:00:07]} Nf6 {[%emt 0:00:12]} 4. Nf3 {[%emt 0:00:05]} c5 {[%emt 0:00:35]} 5. cxd5 {[%emt 0:01:24]} exd5 {[%emt 0:02:50]} 6. d4 {[%emt 0:00:54]} c4 {[%emt 0:01:56]} 7. O-O {[%emt 0:00:22]} Nc6 {[%emt 0:00:52]} 8. Nc3 {[%emt 0:00:12]} Be7 {[%emt 0:00:40]} 9. Ne5 {[%emt 0:13:54]} O-O {[%emt 0:23:09]} 10. Nxc6 {[%emt 0:01:52]} bxc6 {[%emt 0:00:09]} 11. e4 {[%emt 0:06:49]} dxe4 {[%emt 0:05:44]} 12. Nxe4 {[%emt 0:01:10]} Rb8 {[%emt 0:03:58]} 13. Qa4 {[%emt 0:19:27]} Nxe4 {[%emt 0:05:35]} 14. Bxe4 {[%emt 0:00:05]} Qxd4 {[%emt 0:00:48]} 15. Bxc6 {[%emt 0:00:15]} Bh3 {[%emt 0:02:30]} 16. Rd1 {[%emt 0:06:05]} Qb6 {[%emt 0:10:03]} 17. Be3 {[%emt 0:05:44]} Qxb2 {[%emt 0:07:47]} 18. Qxc4 {[%emt 0:02:38]} a5 {[%emt 0:04:13]} 19. Bd4 {[%emt 0:18:23]} Qb4 20. Qxb4 {[%emt 0:00:09]} Bxb4 {[%emt 0:13:35]} 21. a3 {[%emt 0:00:18]} Be7 {[%emt 0:01:15]} 22. Bg2 {[%emt 0:00:11]} Be6 {[%emt 0:00:39]} 23. a4 {[%emt 0:06:36]} h6 {[%emt 0:00:32]} 24. Rab1 {[%emt 0:01:57]} Rb4 {[%emt 0:00:50]} 25. Rxb4 {[%emt 0:01:41]} Bxb4 {[%emt 0:01:06]} 26. Rc1 {[%emt 0:05:28]} Rd8 {[%emt 0:01:32]} 27. Be3 {[%emt 0:00:32]} Bb3 {[%emt 0:00:40]} 28. Ra1 {[%emt 0:03:06]} Kf8 {[%emt 0:02:28]} 29. Bc6 {[%emt 0:00:29]} Rd6 {[%emt 0:00:59]} 30. Bb5 {[%emt 0:00:22]} Ke7 {[%emt 0:00:41]} 31. Kg2 {[%emt 0:01:05]} Bd5+ {[%emt 0:00:20]} 32. Kf1 {[%emt 0:01:05]} Bf3 {[%emt 0:00:24]} 33. Be2 {[%emt 0:00:45]} Bc6 {[%emt 0:00:22]} 34. Bf4 {[%emt 0:00:45]} Rd7 {[%emt 0:01:34]} 35. Bg4 {[%emt 0:02:48]} Rd8 {[%emt 0:01:07]} 36. Ke2 {[%emt 0:00:30]} Rd4 {[%emt 0:01:41]} 37. Bh3 {[%emt 0:00:44]} Rc4 {[%emt 0:01:15]} 38. Be3 {[%emt 0:00:27]} Be4 {[%emt 0:02:08]} 39. Bg4 {[%emt 0:00:13]} Bc2 {[%emt 0:01:32]} 40. Bf3 {[%emt 0:00:27]} Bc3 {[%emt 0:02:16]} 41. Bd5 {[%emt 0:05:10]} Bxa1 {[%emt 0:05:10]} 42. Bxc4 {[%emt 0:00:08]} Bxa4 {[%emt 0:00:15]} 43. Bd2 {[%emt 0:00:13]} 1/2-1/2

[Event "DFMMLV 2024"]
[Site "Braunfels"]
[Date "2024.06.02"]
[Round "5.37"]
[White "Reich, Elisabeth"]
[Black "Braje, Monika"]
[Result "1-0"]
[ECO "A00"]
[WhiteElo "1797"]
[BlackElo "1861"]
[Annotator "NA RC"]
[PlyCount "57"]
[EventDate "2024.05.30"]
[EventType "team-tourn"]
[EventCountry "GER"]
[SourceTitle "playchess.com"]
[Source "ChessBase"]
[SourceQuality "1"]
[TimeControl "40/5400+30:1800+30"]

1. e4 {[%emt 0:00:03]} d5 {[%emt 0:00:06]} 2. Nc3 {[%emt 0:00:05]} d4 {[%emt 0:00:19]} 3. Nce2 {[%emt 0:00:06]} e5 {[%emt 0:00:09]} 4. Ng3 {[%emt 0:00:06]} Nf6 {[%emt 0:00:10]} 5. Nf3 {[%emt 0:00:08]} Nbd7 {[%emt 0:01:17]} 6. Bc4 {[%emt 0:00:40]} Bd6 {[%emt 0:01:13]} 7. O-O {[%emt 0:00:38]} h6 {[%emt 0:01:38]} 8. d3 {[%emt 0:01:20]} a6 {[%emt 0:01:05]} 9. a4 {[%emt 0:00:19]} Nb6 {[%emt 0:01:53]} 10. Bb3 {[%emt 0:00:31]} Qe7 {[%emt 0:00:46]} 11. Nxe5 {[%emt 0:04:28]} Bxe5 {[%emt 0:03:15]} 12. f4 {[%emt 0:00:07]} Bg4 {[%emt 0:01:53]} 13. Qd2 {[%emt 0:00:26]} Bxf4 {[%emt 0:03:14]} 14. Qxf4 {[%emt 0:00:20]} Be6 {[%emt 0:05:28]} 15. Nf5 {[%emt 0:01:39]} Bxf5 {[%emt 0:01:10]} 16. Qxf5 {[%emt 0:00:11]} Nbd7 {[%emt 0:11:25]} 17. Bf4 {[%emt 0:02:36]} g6 {[%emt 0:07:06]} 18. Qa5 {[%emt 0:01:05]} b6 {[%emt 0:01:49]} 19. Qd2 {[%emt 0:00:11]} O-O-O {[%emt 0:00:42]} 20. Bxh6 {[%emt 0:03:10]} Ng4 {[%emt 0:08:22]} 21. Bf4 {[%emt 0:00:24]} Qh4 {[%emt 0:00:40]} 22. Qe1 {[%emt 0:02:10]} Qh5 {[%emt 0:01:35]} 23. Qg3 {[%emt 0:02:30]} Rh7 {[%emt 0:04:46]} 24. Bxc7 {[%emt 0:03:23]} Rdh8 {[%emt 0:06:16]} 25. h3 {[%emt 0:02:03]} Ne3 {[%emt 0:01:01]} 26. Rxf7 {[%emt 0:01:26]} Rxf7 {[%emt 0:01:12]} 27. Bxf7 {[%emt 0:00:03]} Rf8 {[%emt 0:03:07]} 28. Be6 {[%emt 0:01:06]} Qc5 {[%emt 0:01:59]} 29. Bd6 {[%emt 0:03:55]} 1-0

[Event "DFMMLV 2024"]
[Site "Braunfels"]
[Date "2024.06.02"]
[Round "5.38"]
[White "Rotermund, Verena"]
[Black "Spiel, Marianne"]
[Result "0-1"]
[ECO "C10"]
[WhiteElo "1765"]
[BlackElo "1890"]
[Annotator "NA RC"]
[PlyCount "114"]
[EventDate "2024.05.30"]
[EventType "team-tourn"]
[EventCountry "GER"]
[SourceTitle "playchess.com"]
[Source "ChessBase"]
[SourceQuality "1"]
[TimeControl "40/5400+30:1800+30"]

1. e4 {[%emt 0:00:02]} e6 {[%emt 0:00:06]} 2. d4 {[%emt 0:00:30]} d5 {[%emt 1:31:24]} 3. Nc3 {[%emt 0:00:32]} Nf6 {[%emt 0:01:22]} 4. Bg5 {[%emt 0:00:18]} dxe4 {[%emt 0:01:11]} 5. Nxe4 {[%emt 0:04:03]} Nbd7 {[%emt 0:01:59]} 6. Nxf6+ {[%emt 0:04:08]} Nxf6 {[%emt 0:01:26]} 7. Nf3 {[%emt 0:00:37]} Be7 {[%emt 0:01:07]} 8. Bd3 {[%emt 0:02:57]} h6 {[%emt 0:00:57]} 9. Bh4 {[%emt 0:00:40]} O-O {[%emt 0:03:59]} 10. O-O {[%emt 0:09:18]} c5 {[%emt 0:03:06]} 11. dxc5 {[%emt 0:04:18]} Bxc5 {[%emt 0:02:46]} 12. Qe2 {[%emt 0:04:33]} Be7 {[%emt 0:06:27]} 13. Rfd1 {[%emt 0:06:26]} Qa5 {[%emt 0:04:13]} 14. Ne5 {[%emt 0:04:18]} Qb4 {[%emt 0:04:03]} 15. Nc4 {[%emt 0:08:31]} Qc5 {[%emt 0:07:35]} 16. a3 {[%emt 0:11:02]} Re8 {[%emt 0:34:30]} 17. Ne5 {[%emt 0:01:29]} Nd5 {[%emt 0:10:18]} 18. Qh5 {[%emt 0:06:06]} Rf8 {[%emt 0:00:58]} 19. Bg3 {[%emt 0:07:09]} Bg5 {[%emt 0:02:35]} 20. Qf3 {[%emt 0:03:25]} Qe7 {[%emt 0:00:49]} 21. c4 {[%emt 0:01:19]} Nb6 {[%emt 0:00:53]} 22. b3 {[%emt 0:04:02]} Bf6 {[%emt 0:05:53]} 23. Qe4 {[%emt 0:01:18]} g6 {[%emt 0:00:22]} 24. Rac1 {[%emt 0:02:06]} Nd7 {[%emt 0:02:50]} 25. Nxg6 {[%emt 0:09:12]} fxg6 {[%emt 0:00:15]} 26. Bd6 {[%emt 0:00:32]} Qf7 {[%emt 0:00:38]} 27. c5 {[%emt 0:01:48]} Bg5 {[%emt 0:00:36]} 28. f3 {[%emt 0:03:51]} Bxc1 {[%emt 0:00:55]} 29. Bxf8 {[%emt 0:01:23]} Nxf8 {[%emt 0:00:12]} 30. Rxc1 {[%emt 0:00:20]} Qf5 {[%emt 0:01:19]} 31. Qe2 {[%emt 0:00:38]} Qf4 {[%emt 0:00:48]} 32. Re1 {[%emt 0:00:17]} Qd4+ {[%emt 0:00:44]} 33. Kh1 {[%emt 0:00:09]} Bd7 {[%emt 0:02:01]} 34. b4 {[%emt 0:00:23]} Bc6 {[%emt 0:00:00]} 35. Bb1 {[%emt 0:00:59]} Rd8 {[%emt 0:00:00]} 36. h3 {[%emt 0:00:52]} Kg7 {[%emt 0:00:00]} 37. Ba2 {[%emt 0:01:32]} Bd5 {[%emt 0:01:03]} 38. Bb1 {[%emt 0:00:13]} Qf6 {[%emt 0:00:02]} 39. Qf2 {[%emt 0:00:35]} g5 {[%emt 0:00:17]} 40. b5 {[%emt 0:00:25]} Rd7 {[%emt 0:00:27]} 41. a4 {[%emt 0:30:35]} Ng6 {[%emt 0:03:22]} 42. Qc2 {[%emt 0:00:00]} Kf7 {[%emt 0:06:30]} 43. a5 {[%emt 0:00:00]} Rc7 {[%emt 0:01:31]} 44. Rd1 {[%emt 0:00:00]} Rc8 {[%emt 0:05:13]} 45. Qf2 {[%emt 0:00:00]} a6 {[%emt 0:05:23]} 46. bxa6 {[%emt 0:00:00]} bxa6 {[%emt 0:00:02]} 47. c6 {[%emt 0:00:00]} Rxc6 {[%emt 0:00:33]} 48. Qa7+ {[%emt 0:00:00]} Ne7 {[%emt 0:01:06]} 49. Re1 {[%emt 0:00:00]} Qc3 {[%emt 0:01:05]} 50. Rf1 {[%emt 0:00:00]} Qxa5 {[%emt 0:01:03]} 51. Qd4 {[%emt 0:00:00]} Qc3 {[%emt 0:00:43]} 52. Qa7 {[%emt 0:00:00]} Qc4 {[%emt 0:00:51]} 53. Rg1 {[%emt 0:00:00]} Rc7 {[%emt 0:00:11]} 54. Qb8 {[%emt 0:00:00]} Rc8 {[%emt 0:01:51]} 55. Qe5 {[%emt 0:00:00]} Qc3 {[%emt 0:00:32]} 56. Qe2 {[%emt 0:00:14]} a5 {[%emt 0:00:24]} 57. f4 {[%emt 0:09:15]} Qxh3# {[%emt 0:01:20]} 0-1

[Event "DFMMLV 2024"]
[Site "Braunfels"]
[Date "2024.06.02"]
[Round "5.40"]
[White "Graf, Ann-Jennifer"]
[Black "Albayrak, Aylin"]
[Result "0-1"]
[ECO "B56"]
[WhiteElo "1827"]
[BlackElo "1752"]
[Annotator "NA RC"]
[PlyCount "72"]
[EventDate "2024.05.30"]
[EventType "team-tourn"]
[EventCountry "GER"]
[SourceTitle "playchess.com"]
[Source "ChessBase"]
[SourceQuality "1"]
[TimeControl "40/5400+30:1800+30"]

1. e4 {[%emt 0:00:02]} c5 {[%emt 0:00:06]} 2. Nc3 {[%emt 0:00:10]} Nc6 {[%emt 0:00:37]} 3. Bb5 {[%emt 0:00:10]} Nf6 {[%emt 0:00:55]} 4. Nf3 {[%emt 0:01:53]} d6 {[%emt 0:01:15]} 5. d4 {[%emt 0:04:30]} cxd4 {[%emt 0:01:43]} 6. Nxd4 {[%emt 0:03:02]} Bd7 {[%emt 0:00:35]} 7. Nb3 {[%emt 0:19:25]} a6 {[%emt 0:02:33]} 8. Bd3 {[%emt 0:03:13]} e6 {[%emt 0:02:42]} 9. Be3 {[%emt 0:02:09]} Be7 {[%emt 0:06:38]} 10. a4 {[%emt 0:01:38]} O-O {[%emt 0:03:14]} 11. g4 {[%emt 0:08:24]} Ne5 {[%emt 0:10:16]} 12. Be2 {[%emt 0:02:28]} Bc6 {[%emt 0:03:34]} 13. f3 {[%emt 0:06:36]} d5 {[%emt 0:05:04]} 14. f4 {[%emt 0:05:30]} Ng6 {[%emt 0:07:59]} 15. Nd4 {[%emt 0:04:42]} Bb4 {[%emt 0:02:07]} 16. Nxc6 {[%emt 0:06:18]} bxc6 {[%emt 0:02:07]} 17. e5 {[%emt 0:04:52]} Ne4 {[%emt 0:02:03]} 18. O-O {[%emt 0:01:32]} Nxc3 {[%emt 0:01:38]} 19. bxc3 {[%emt 0:00:12]} Bxc3 {[%emt 0:00:11]} 20. Rb1 {[%emt 0:00:53]} Qa5 {[%emt 0:08:52]} 21. Bd4 {[%emt 0:02:02]} c5 {[%emt 0:00:58]} 22. Bxc3 {[%emt 0:00:38]} Qxc3 {[%emt 0:00:40]} 23. Rb3 {[%emt 0:04:38]} Qa5 {[%emt 0:00:51]} 24. Ra3 {[%emt 0:07:31]} c4 {[%emt 0:00:41]} 25. Qd4 {[%emt 0:00:54]} Ne7 {[%emt 0:01:12]} 26. c3 {[%emt 0:01:14]} Nc6 {[%emt 0:00:51]} 27. Qe3 {[%emt 0:00:57]} Rab8 {[%emt 0:01:43]} 28. Ra2 {[%emt 0:02:03]} Rb3 {[%emt 0:01:11]} 29. Rc1 {[%emt 0:00:38]} Rfb8 {[%emt 0:03:13]} 30. Kf2 {[%emt 0:00:35]} Rb2 {[%emt 0:04:04]} 31. Rca1 {[%emt 0:01:30]} R8b3 {[%emt 0:01:47]} 32. Ra3 {[%emt 0:00:45]} d4 {[%emt 0:02:05]} 33. Qe4 {[%emt 0:00:16]} Qc5 {[%emt 0:01:17]} 34. Kf3 {[%emt 0:03:35]} Rxa3 {[%emt 0:03:41]} 35. Bd3 {[%emt 0:00:58]} cxd3 {[%emt 0:01:49]} 36. Rxa3 {[%emt 0:00:13]} dxc3 {[%emt 0:01:38]} 0-1

[Event "DFMMLV 2024"]
[Site "Braunfels"]
[Date "2024.06.02"]
[Round "5.41"]
[White "Rogozenco, Teodora"]
[Black "Zimmer, Elke"]
[Result "1-0"]
[ECO "D35"]
[WhiteElo "1993"]
[BlackElo "1920"]
[Annotator "NA RC"]
[PlyCount "59"]
[EventDate "2024.05.30"]
[EventType "team-tourn"]
[EventCountry "GER"]
[SourceTitle "playchess.com"]
[Source "ChessBase"]
[SourceQuality "1"]
[TimeControl "40/5400+30:1800+30"]

1. d4 {[%emt 0:01:12]} d5 {[%emt 0:00:33]} 2. c4 {[%emt 0:00:06]} e6 {[%emt 0:00:12]} 3. Nc3 {[%emt 0:00:06]} Nf6 {[%emt 0:03:25]} 4. cxd5 {[%emt 0:02:22]} exd5 {[%emt 0:00:19]} 5. Bg5 {[%emt 0:00:10]} c6 {[%emt 0:00:19]} 6. e3 {[%emt 0:01:33]} Be7 {[%emt 0:00:49]} 7. Bd3 {[%emt 0:00:06]} Bg4 {[%emt 0:11:05]} 8. Qc2 {[%emt 0:04:29]} Nbd7 {[%emt 0:04:44]} 9. Nge2 {[%emt 0:00:39]} Bh5 {[%emt 0:00:26]} 10. Nf4 {[%emt 0:04:47]} h6 {[%emt 0:00:17]} 11. Bh4 {[%emt 0:23:15]} g5 {[%emt 0:01:37]} 12. Nxh5 {[%emt 0:00:12]} Nxh5 {[%emt 0:00:12]} 13. Bg3 {[%emt 0:00:48]} Nxg3 {[%emt 0:00:08]} 14. fxg3 {[%emt 0:03:51]} Qc7 {[%emt 0:07:03]} 15. Nxd5 {[%emt 0:00:51]} Qa5+ {[%emt 0:00:18]} 16. Nc3 {[%emt 0:00:05]} O-O-O {[%emt 0:00:42]} 17. O-O {[%emt 0:00:11]} Nf6 {[%emt 0:03:01]} 18. Rf5 {[%emt 0:04:50]} Qc7 {[%emt 0:00:57]} 19. Raf1 {[%emt 0:03:03]} Ng4 {[%emt 0:08:19]} 20. Qe2 {[%emt 0:01:09]} h5 {[%emt 0:00:10]} 21. Rxf7 {[%emt 0:02:05]} Nxh2 {[%emt 0:01:11]} 22. Kxh2 {[%emt 0:02:49]} h4 {[%emt 0:00:07]} 23. Qg4+ {[%emt 0:07:35]} Kb8 {[%emt 0:00:09]} 24. Ne4 {[%emt 0:00:41]} hxg3+ {[%emt 0:00:38]} 25. Kg1 {[%emt 0:00:07]} Rh4 {[%emt 0:15:25]} 26. Qxg3 {[%emt 0:00:42]} Qxg3 {[%emt 0:00:33]} 27. Nxg3 {[%emt 0:00:12]} Bd6 {[%emt 0:00:22]} 28. Nf5 {[%emt 0:03:12]} Bh2+ {[%emt 0:02:55]} 29. Kf2 {[%emt 0:00:04]} Rh5 {[%emt 0:00:27]} 30. g3 {[%emt 0:34:18]} 1-0

[Event "DFMMLV 2024"]
[Site "Braunfels"]
[Date "2024.06.02"]
[Round "5.42"]
[White "Noll, Sonja"]
[Black "Brandt, Carina"]
[Result "0-1"]
[ECO "A01"]
[WhiteElo "1837"]
[BlackElo "2038"]
[Annotator "RC"]
[PlyCount "74"]
[EventDate "2024.05.30"]
[EventType "team-tourn"]
[EventCountry "GER"]
[SourceTitle "playchess.com"]
[Source "ChessBase"]
[SourceQuality "1"]
[TimeControl "40/5400+30:1800+30"]

1. b3 {[%emt 0:03:13]} d5 {[%emt 0:01:32]} 2. Bb2 {[%emt 0:03:26]} Bf5 {[%emt 0:01:11]} 3. e3 {[%emt 0:00:37]} e6 {[%emt 0:01:28]} 4. h4 {[%emt 0:03:17]} h5 {[%emt 0:04:04]} 5. Be2 {[%emt 0:04:04]} Nf6 {[%emt 0:00:46]} 6. d4 {[%emt 0:02:24]} c5 {[%emt 0:07:14]} 7. Ba3 {[%emt 0:05:39]} cxd4 {[%emt 0:07:36]} 8. Bxf8 {[%emt 0:01:31]} Kxf8 {[%emt 0:00:03]} 9. exd4 {[%emt 0:05:42]} Nc6 {[%emt 0:03:59]} 10. c3 {[%emt 0:10:17]} Qa5 {[%emt 0:06:20]} 11. b4 {[%emt 0:00:44]} Qc7 {[%emt 0:00:13]} 12. Nd2 {[%emt 0:04:21]} Rc8 {[%emt 0:03:44]} 13. Rc1 {[%emt 0:02:28]} Nxb4 {[%emt 0:04:39]} 14. Qb3 {[%emt 0:07:55]} Nc6 {[%emt 0:00:49]} 15. Ngf3 {[%emt 0:05:38]} g6 {[%emt 0:09:54]} 16. O-O {[%emt 0:00:25]} Kg7 {[%emt 0:00:19]} 17. c4 {[%emt 0:01:12]} dxc4 {[%emt 0:05:08]} 18. Nxc4 {[%emt 0:02:11]} Qe7 {[%emt 0:02:12]} 19. Nce5 {[%emt 0:03:08]} Nxe5 {[%emt 0:03:59]} 20. dxe5 {[%emt 0:00:17]} Ne4 {[%emt 0:02:09]} 21. Qe3 {[%emt 0:02:23]} b6 {[%emt 0:01:28]} 22. Rc4 {[%emt 0:02:45]} Rxc4 {[%emt 0:06:13]} 23. Bxc4 {[%emt 0:06:56]} Qc5 {[%emt 0:00:42]} 24. Qxc5 {[%emt 0:01:57]} Nxc5 {[%emt 0:00:08]} 25. Rd1 {[%emt 0:01:30]} Bg4 {[%emt 0:01:42]} 26. Rd6 {[%emt 0:02:48]} Bxf3 {[%emt 0:00:27]} 27. gxf3 {[%emt 0:00:06]} Rc8 {[%emt 0:00:23]} 28. Kf1 {[%emt 0:02:27]} Kf8 {[%emt 0:00:46]} 29. Rd2 {[%emt 0:01:55]} Ke7 {[%emt 0:00:42]} 30. Be2 {[%emt 0:00:25]} Nd7 {[%emt 0:02:14]} 31. Ba6 {[%emt 0:00:53]} Rc3 {[%emt 0:00:30]} 32. f4 {[%emt 0:00:30]} Nc5 {[%emt 0:00:30]} 33. Ke1 {[%emt 0:00:30]} Nd7 {[%emt 0:01:29]} 34. Ke2 {[%emt 0:00:38]} Nc5 {[%emt 0:00:30]} 35. Kf1 {[%emt 0:00:30]} Ra3 {[%emt 0:00:30]} 36. Be2 {[%emt 0:00:30]} a6 {[%emt 0:00:30]} 37. Kg2 {[%emt 0:00:30]} b5 {[%emt 0:06:47]} 0-1